[Event "Titled Tuesday Blitz January 03 Early 2023"]
[White "Suduvasachmatai"]
[Black "Manukyan, Sargis A."]
[BlackFideId "13303970"]
[WhiteElo "2107"]
[BlackElo "2158"]
[Result "1-0"]
[Round "02"]
[TimeControl "180+2"]
[Date "2023.01.03"]
[WhiteClock "0:00:23"]
[BlackClock "0:00:18"]

1. e4 {[%clk 0:02:58]}  e6 {[%clk 0:02:58]} 2. d4 {[%clk 0:02:58]}  d5 {[%clk 0:02:58]} 3. e5 {[%clk 0:02:59]}  c5 {[%clk 0:02:58]} 4. c3 {[%clk 0:02:59]}  Nc6 {[%clk 0:02:58]} 5. Nf3 {[%clk 0:02:56]}  Nh6 {[%clk 0:02:59]} 6. Bd3 {[%clk 0:02:51]}  cxd4 {[%clk 0:02:50]} 7. cxd4 {[%clk 0:02:52]}  Nf5 {[%clk 0:02:50]} 8. Bxf5 {[%clk 0:02:52]}  exf5 {[%clk 0:02:49]} 9. O-O {[%clk 0:02:52]}  Be6 {[%clk 0:02:50]} 10. Nc3 {[%clk 0:02:51]}  Be7 {[%clk 0:02:50]} 11. Qb3 {[%clk 0:02:47]}  Qd7 {[%clk 0:02:50]} 12. Bf4 {[%clk 0:02:45]}  h6 {[%clk 0:02:48]} 13. Rac1 {[%clk 0:02:44]}  g5 {[%clk 0:02:47]} 14. Be3 {[%clk 0:02:38]}  f4 {[%clk 0:02:47]} 15. Bd2 {[%clk 0:02:37]}  g4 {[%clk 0:02:47]} 16. Ne1 {[%clk 0:02:37]}  Nxd4 {[%clk 0:02:45]} 17. Qd1 {[%clk 0:02:36]}  f3 {[%clk 0:02:43]} 18. Be3 {[%clk 0:02:36]}  fxg2 {[%clk 0:02:39]} 19. Nxg2 {[%clk 0:02:32]}  Nf3+ {[%clk 0:02:38]} 20. Kh1 {[%clk 0:02:33]}  d4 {[%clk 0:02:36]} 21. Ne4 {[%clk 0:02:19]}  dxe3 {[%clk 0:02:33]} 22. Qe2 {[%clk 0:02:18]}  exf2 {[%clk 0:02:08]} 23. Rfd1 {[%clk 0:02:15]}  Qa4 {[%clk 0:01:56]} 24. Nd6+ {[%clk 0:02:04]}  Bxd6 {[%clk 0:01:50]} 25. exd6 {[%clk 0:02:03]}  O-O {[%clk 0:01:44]} 26. Qxf2 {[%clk 0:01:53]}  Qxa2 {[%clk 0:01:36]} 27. Qe3 {[%clk 0:01:49]}  Kh7 {[%clk 0:01:31]} 28. Qe4+ {[%clk 0:01:43]}  f5 {[%clk 0:01:31]} 29. Qxb7+ {[%clk 0:01:42]}  Kg6 {[%clk 0:01:30]} 30. d7 {[%clk 0:01:36]}  Rad8 {[%clk 0:01:21]} 31. Qc6 {[%clk 0:01:32]}  Rf6 {[%clk 0:01:20]} 32. Qc7 {[%clk 0:01:28]}  Rxd7 {[%clk 0:01:10]} 33. Rxd7 {[%clk 0:01:27]}  Bxd7 {[%clk 0:01:11]} 34. Qxd7 {[%clk 0:01:27]}  Qxb2 {[%clk 0:01:10]} 35. Qe8+ {[%clk 0:01:22]}  Kg5 {[%clk 0:01:09]} 36. Qe3+ {[%clk 0:01:17]}  Kg6 {[%clk 0:01:00]} 37. Nf4+ {[%clk 0:01:14]}  Kg7 {[%clk 0:00:49]} 38. Rc7+ {[%clk 0:01:13]}  Rf7 {[%clk 0:00:48]} 39. Rxf7+ {[%clk 0:01:02]}  Kxf7 {[%clk 0:00:47]} 40. Qe6+ {[%clk 0:01:02]}  Kg7 {[%clk 0:00:46]} 41. Qg6+ {[%clk 0:00:57]}  Kf8 {[%clk 0:00:46]} 42. Qxf5+ {[%clk 0:00:56]}  Ke8 {[%clk 0:00:46]} 43. Qc8+ {[%clk 0:00:53]}  Ke7 {[%clk 0:00:46]} 44. Qe6+ {[%clk 0:00:47]}  Kd8 {[%clk 0:00:46]} 45. Qg8+ {[%clk 0:00:42]}  Kc7 {[%clk 0:00:44]} 46. Qc4+ {[%clk 0:00:40]}  Kd6 {[%clk 0:00:42]} 47. Qd5+ {[%clk 0:00:40]}  Kc7 {[%clk 0:00:38]} 48. Ne6+ {[%clk 0:00:39]}  Kb6 {[%clk 0:00:38]} 49. Qc5+ {[%clk 0:00:38]}  Ka6 {[%clk 0:00:32]} 50. Qc4+ {[%clk 0:00:31]}  Ka5 {[%clk 0:00:21]} 51. Qc5+ {[%clk 0:00:30]}  Ka6 {[%clk 0:00:21]} 52. Qc4+ {[%clk 0:00:25]}  Qb5 {[%clk 0:00:20]} 53. Nc7+ {[%clk 0:00:24]}  Kb6 {[%clk 0:00:20]} 54. Nxb5 {[%clk 0:00:25]}  a6 {[%clk 0:00:20]} 55. Nd4 {[%clk 0:00:24]}  Ne5 {[%clk 0:00:17]} 56. Qe6+ {[%clk 0:00:24]}  Kc5 {[%clk 0:00:17]} 57. Qxe5+ {[%clk 0:00:23]}  Kc4 {[%clk 0:00:18]} 58. Nf5 {[%clk 0:00:23]} 1-0


[Site "https://www.chess.com"]

[Event "Titled Tuesday Blitz January 03 Early 2023"]
[White "Vysochin, Spartak"]
[Black "Tuleyeva-Aketayeva, Dana"]
[WhiteFideId "14103516"]
[BlackFideId "13701932"]
[WhiteElo "2512"]
[BlackElo "2130"]
[Result "1-0"]
[Round "02"]
[TimeControl "180+2"]
[Date "2023.01.03"]
[WhiteClock "0:02:08"]
[BlackClock "0:01:38"]

1. e4 {[%clk 0:02:59]}  c5 {[%clk 0:02:59]} 2. c3 {[%clk 0:02:58]}  d5 {[%clk 0:02:58]} 3. exd5 {[%clk 0:02:57]}  Qxd5 {[%clk 0:02:59]} 4. d4 {[%clk 0:02:57]}  Nf6 {[%clk 0:02:58]} 5. Nf3 {[%clk 0:02:58]}  Bg4 {[%clk 0:02:57]} 6. Nbd2 {[%clk 0:02:58]}  cxd4 {[%clk 0:02:54]} 7. Bc4 {[%clk 0:02:49]}  Qd8 {[%clk 0:02:42]} 8. Bxf7+ {[%clk 0:02:36]}  Kxf7 {[%clk 0:02:36]} 9. Ne5+ {[%clk 0:02:36]}  Ke8 {[%clk 0:02:36]} 10. Nxg4 {[%clk 0:02:36]}  dxc3 {[%clk 0:02:25]} 11. bxc3 {[%clk 0:02:36]}  Nc6 {[%clk 0:02:20]} 12. O-O {[%clk 0:02:35]}  g6 {[%clk 0:02:10]} 13. Nxf6+ {[%clk 0:02:24]}  exf6 {[%clk 0:02:08]} 14. Re1+ {[%clk 0:02:23]}  Kf7 {[%clk 0:02:07]} 15. Qb3+ {[%clk 0:02:23]}  Kg7 {[%clk 0:01:52]} 16. Qxb7+ {[%clk 0:02:22]}  Ne7 {[%clk 0:01:53]} 17. Ba3 {[%clk 0:02:19]}  Qxd2 {[%clk 0:01:47]} 18. Qxa8 {[%clk 0:02:12]}  Nf5 {[%clk 0:01:38]} 19. Qxa7+ {[%clk 0:02:09]}  Kh6 {[%clk 0:01:38]} 20. Bc1 {[%clk 0:02:08]} 1-0


[Site "https://www.chess.com"]

[Event "Titled Tuesday Blitz January 03 Early 2023"]
[White "Sadovsky, Artem"]
[Black "Gutierrez Anaya, Yeison Joel"]
[WhiteFideId "4155840"]
[BlackFideId "3903273"]
[WhiteElo "2276"]
[BlackElo "2125"]
[Result "1-0"]
[Round "02"]
[TimeControl "180+2"]
[Date "2023.01.03"]
[WhiteClock "0:02:47"]
[BlackClock "0:00:10"]

1. Nf3 {[%clk 0:03:00]}  d5 {[%clk 0:02:56]} 2. e3 {[%clk 0:03:01]}  f6 {[%clk 0:02:55]} 3. c4 {[%clk 0:03:02]}  c6 {[%clk 0:02:54]} 4. d4 {[%clk 0:02:59]}  Be6 {[%clk 0:02:53]} 5. Nc3 {[%clk 0:03:00]}  dxc4 {[%clk 0:02:52]} 6. a4 {[%clk 0:03:00]}  Nd7 {[%clk 0:02:35]} 7. Nd2 {[%clk 0:03:00]}  c5 {[%clk 0:02:07]} 8. d5 {[%clk 0:03:00]}  Bf7 {[%clk 0:02:07]} 9. Nxc4 {[%clk 0:03:00]}  Nb6 {[%clk 0:02:04]} 10. Nxb6 {[%clk 0:03:00]}  Qxb6 {[%clk 0:02:04]} 11. Bb5+ {[%clk 0:03:01]}  Kd8 {[%clk 0:02:04]} 12. a5 {[%clk 0:03:02]}  Qd6 {[%clk 0:02:04]} 13. O-O {[%clk 0:03:02]}  a6 {[%clk 0:02:03]} 14. Bc4 {[%clk 0:03:02]}  f5 {[%clk 0:02:01]} 15. e4 {[%clk 0:03:02]}  g6 {[%clk 0:01:59]} 16. Re1 {[%clk 0:03:00]}  Bg7 {[%clk 0:01:57]} 17. f4 {[%clk 0:02:59]}  Bxc3 {[%clk 0:01:48]} 18. bxc3 {[%clk 0:02:59]}  fxe4 {[%clk 0:01:49]} 19. Rxe4 {[%clk 0:03:00]}  Nf6 {[%clk 0:01:49]} 20. Re5 {[%clk 0:03:00]}  e6 {[%clk 0:01:18]} 21. Rb1 {[%clk 0:02:55]}  b5 {[%clk 0:01:07]} 22. axb6 {[%clk 0:02:51]}  exd5 {[%clk 0:01:07]} 23. b7 {[%clk 0:02:52]}  Rb8 {[%clk 0:01:07]} 24. Bxd5 {[%clk 0:02:49]}  Nxd5 {[%clk 0:00:51]} 25. c4 {[%clk 0:02:49]}  Re8 {[%clk 0:00:50]} 26. cxd5 {[%clk 0:02:48]}  Rxe5 {[%clk 0:00:49]} 27. fxe5 {[%clk 0:02:49]}  Qxe5 {[%clk 0:00:31]} 28. d6 {[%clk 0:02:50]}  Qd4+ {[%clk 0:00:19]} 29. Qxd4 {[%clk 0:02:51]}  cxd4 {[%clk 0:00:20]} 30. Bg5+ {[%clk 0:02:51]}  Kd7 {[%clk 0:00:20]} 31. Re1 {[%clk 0:02:52]}  Be6 {[%clk 0:00:17]} 32. Re4 {[%clk 0:02:47]}  d3 {[%clk 0:00:15]} 33. Rd4 {[%clk 0:02:48]}  Bf5 {[%clk 0:00:12]} 34. Rb4 {[%clk 0:02:48]}  d2 {[%clk 0:00:12]} 35. Bxd2 {[%clk 0:02:48]}  Kxd6 {[%clk 0:00:12]} 36. Bf4+ {[%clk 0:02:48]}  Kc5 {[%clk 0:00:12]} 37. Rb2 {[%clk 0:02:47]}  Re8 {[%clk 0:00:10]} 38. b8=Q {[%clk 0:02:46]}  Rxb8 {[%clk 0:00:10]} 39. Bxb8 {[%clk 0:02:47]} 1-0


[Site "https://www.chess.com"]

[Event "Titled Tuesday Blitz January 03 Early 2023"]
[White "Cardozo Munar, Carlos Eduardo"]
[Black "Legenia, Artem"]
[WhiteFideId "4409477"]
[BlackFideId "14136945"]
[WhiteElo "2043"]
[BlackElo "2092"]
[Result "1-0"]
[Round "02"]
[TimeControl "180+2"]
[Date "2023.01.03"]
[WhiteClock "0:01:34"]
[BlackClock "0:00:58"]

1. d4 {[%clk 0:02:59]}  d5 {[%clk 0:02:55]} 2. c3 {[%clk 0:02:59]}  Bf5 {[%clk 0:02:54]} 3. Bg5 {[%clk 0:02:59]}  c6 {[%clk 0:02:54]} 4. Nd2 {[%clk 0:02:59]}  Nd7 {[%clk 0:02:54]} 5. Ngf3 {[%clk 0:02:59]}  Ngf6 {[%clk 0:02:54]} 6. g3 {[%clk 0:02:59]}  h6 {[%clk 0:02:54]} 7. Bxf6 {[%clk 0:02:59]}  Nxf6 {[%clk 0:02:54]} 8. Bg2 {[%clk 0:03:00]}  e6 {[%clk 0:02:55]} 9. O-O {[%clk 0:03:01]}  Bd6 {[%clk 0:02:55]} 10. Re1 {[%clk 0:03:02]}  O-O {[%clk 0:02:55]} 11. Qb3 {[%clk 0:02:57]}  Qb6 {[%clk 0:02:54]} 12. Qxb6 {[%clk 0:02:56]}  axb6 {[%clk 0:02:54]} 13. a3 {[%clk 0:02:57]}  Bh7 {[%clk 0:02:48]} 14. h3 {[%clk 0:02:57]}  b5 {[%clk 0:02:46]} 15. Nh2 {[%clk 0:02:57]}  Nd7 {[%clk 0:02:39]} 16. e4 {[%clk 0:02:57]}  dxe4 {[%clk 0:02:38]} 17. Nxe4 {[%clk 0:02:57]}  Be7 {[%clk 0:02:37]} 18. Rad1 {[%clk 0:02:52]}  Nb6 {[%clk 0:02:37]} 19. Nd2 {[%clk 0:02:51]}  Nd5 {[%clk 0:02:30]} 20. Be4 {[%clk 0:02:44]}  Rfd8 {[%clk 0:02:23]} 21. Bxh7+ {[%clk 0:02:43]}  Kxh7 {[%clk 0:02:23]} 22. Ng4 {[%clk 0:02:43]}  c5 {[%clk 0:02:08]} 23. dxc5 {[%clk 0:02:37]}  Bxc5 {[%clk 0:02:08]} 24. Ne5 {[%clk 0:02:37]}  Kg8 {[%clk 0:02:07]} 25. Ne4 {[%clk 0:02:35]}  Bf8 {[%clk 0:02:07]} 26. Rd2 {[%clk 0:02:25]}  Nb6 {[%clk 0:02:07]} 27. Red1 {[%clk 0:02:25]}  Rd5 {[%clk 0:02:06]} 28. Rxd5 {[%clk 0:01:53]}  Nxd5 {[%clk 0:02:05]} 29. Nd7 {[%clk 0:01:48]}  Rc8 {[%clk 0:01:58]} 30. Nxf8 {[%clk 0:01:47]}  Kxf8 {[%clk 0:01:58]} 31. Nd6 {[%clk 0:01:48]}  Rd8 {[%clk 0:01:46]} 32. Nxb5 {[%clk 0:01:44]}  Ke7 {[%clk 0:01:46]} 33. Nd4 {[%clk 0:01:43]}  g6 {[%clk 0:01:37]} 34. Ra1 {[%clk 0:01:43]}  Nb6 {[%clk 0:01:35]} 35. a4 {[%clk 0:01:40]}  e5 {[%clk 0:01:35]} 36. Nf3 {[%clk 0:01:40]}  f6 {[%clk 0:01:32]} 37. a5 {[%clk 0:01:40]}  Nc4 {[%clk 0:01:32]} 38. b3 {[%clk 0:01:40]}  Nd6 {[%clk 0:01:31]} 39. c4 {[%clk 0:01:40]}  Ra8 {[%clk 0:01:27]} 40. Kg2 {[%clk 0:01:38]}  Ne4 {[%clk 0:01:21]} 41. b4 {[%clk 0:01:32]}  Nd6 {[%clk 0:01:18]} 42. Nd2 {[%clk 0:01:33]}  Ke6 {[%clk 0:01:14]} 43. b5 {[%clk 0:01:33]}  e4 {[%clk 0:01:04]} 44. a6 {[%clk 0:01:32]}  bxa6 {[%clk 0:01:02]} 45. Rxa6 {[%clk 0:01:33]}  Rc8 {[%clk 0:00:58]} 46. Nxe4 {[%clk 0:01:34]} 1-0


[Site "https://www.chess.com"]

[Event "Titled Tuesday Blitz January 03 Early 2023"]
[White "Mitrovic, Darko R"]
[Black "Zherebtsova, Alexandra"]
[WhiteFideId "927023"]
[BlackFideId "24129518"]
[WhiteElo "2220"]
[BlackElo "2155"]
[Result "0-1"]
[Round "02"]
[TimeControl "180+2"]
[Date "2023.01.03"]
[WhiteClock "0:00:16"]
[BlackClock "0:00:15"]

1. d4 {[%clk 0:02:50]}  d5 {[%clk 0:02:59]} 2. Nf3 {[%clk 0:02:48]}  Nf6 {[%clk 0:02:58]} 3. g3 {[%clk 0:02:48]}  g6 {[%clk 0:02:54]} 4. Bg2 {[%clk 0:02:37]}  Bg7 {[%clk 0:02:52]} 5. O-O {[%clk 0:02:37]}  O-O {[%clk 0:02:51]} 6. b3 {[%clk 0:02:38]}  b6 {[%clk 0:02:42]} 7. Bb2 {[%clk 0:02:37]}  Bb7 {[%clk 0:02:42]} 8. c4 {[%clk 0:02:30]}  e6 {[%clk 0:02:31]} 9. cxd5 {[%clk 0:02:27]}  exd5 {[%clk 0:02:30]} 10. Nbd2 {[%clk 0:02:25]}  Ne4 {[%clk 0:02:27]} 11. Nxe4 {[%clk 0:02:07]}  dxe4 {[%clk 0:02:23]} 12. Ne5 {[%clk 0:02:08]}  Nd7 {[%clk 0:02:09]} 13. Nxd7 {[%clk 0:02:04]}  Qxd7 {[%clk 0:02:08]} 14. Qc2 {[%clk 0:01:52]}  f5 {[%clk 0:02:03]} 15. e3 {[%clk 0:01:51]}  Rac8 {[%clk 0:02:01]} 16. b4 {[%clk 0:01:37]}  Ba6 {[%clk 0:01:52]} 17. Rfc1 {[%clk 0:01:30]}  Kh8 {[%clk 0:01:49]} 18. a4 {[%clk 0:01:24]}  Bd3 {[%clk 0:01:48]} 19. Qc6 {[%clk 0:01:17]}  Qd8 {[%clk 0:01:38]} 20. Bf1 {[%clk 0:01:12]}  Bxf1 {[%clk 0:01:26]} 21. Kxf1 {[%clk 0:01:11]}  Rf7 {[%clk 0:00:53]} 22. a5 {[%clk 0:01:05]}  Rd7 {[%clk 0:00:50]} 23. a6 {[%clk 0:00:50]}  Bf8 {[%clk 0:00:22]} 24. b5 {[%clk 0:00:44]}  Bg7 {[%clk 0:00:16]} 25. Rc2 {[%clk 0:00:40]}  Rd5 {[%clk 0:00:15]} 26. Rac1 {[%clk 0:00:36]}  Qd7 {[%clk 0:00:15]} 27. Qxd7 {[%clk 0:00:20]}  Rxd7 {[%clk 0:00:16]} 28. Rc6 {[%clk 0:00:20]}  Kg8 {[%clk 0:00:15]} 29. Ba3 {[%clk 0:00:19]}  Kf7 {[%clk 0:00:14]} 30. Ke2 {[%clk 0:00:19]}  Ke8 {[%clk 0:00:14]} 31. Bd6 {[%clk 0:00:16]}  Kd8 {[%clk 0:00:14]} 32. Bf4 {[%clk 0:00:15]}  Bf8 {[%clk 0:00:12]} 33. h4 {[%clk 0:00:14]}  Bd6 {[%clk 0:00:11]} 34. Bxd6 {[%clk 0:00:15]}  Rxd6 {[%clk 0:00:11]} 35. Rxd6+ {[%clk 0:00:14]}  cxd6 {[%clk 0:00:11]} 36. Rxc8+ {[%clk 0:00:14]}  Kxc8 {[%clk 0:00:12]} 37. Kd2 {[%clk 0:00:13]}  d5 {[%clk 0:00:12]} 38. Ke2 {[%clk 0:00:13]}  Kd7 {[%clk 0:00:13]} 39. Kf1 {[%clk 0:00:13]}  Ke6 {[%clk 0:00:13]} 40. Kg2 {[%clk 0:00:13]}  h5 {[%clk 0:00:10]} 41. f4 {[%clk 0:00:10]}  Kf6 {[%clk 0:00:10]} 42. Kf2 {[%clk 0:00:10]}  Ke6 {[%clk 0:00:10]} 43. Ke2 {[%clk 0:00:10]}  Kf6 {[%clk 0:00:10]} 44. Kd2 {[%clk 0:00:10]}  Ke6 {[%clk 0:00:11]} 45. Kc2 {[%clk 0:00:11]}  Kf6 {[%clk 0:00:11]} 46. Kb3 {[%clk 0:00:11]}  Ke6 {[%clk 0:00:12]} 47. Ka2 {[%clk 0:00:12]}  Kf6 {[%clk 0:00:12]} 48. Ka1 {[%clk 0:00:12]}  Ke6 {[%clk 0:00:13]} 49. g4 {[%clk 0:00:13]}  hxg4 {[%clk 0:00:12]} 50. h5 {[%clk 0:00:13]}  gxh5 {[%clk 0:00:12]} 51. Ka2 {[%clk 0:00:13]}  h4 {[%clk 0:00:12]} 52. Ka1 {[%clk 0:00:14]}  h3 {[%clk 0:00:13]} 53. Ka2 {[%clk 0:00:15]}  h2 {[%clk 0:00:13]} 54. Ka1 {[%clk 0:00:15]}  h1=Q+ {[%clk 0:00:13]} 55. Ka2 {[%clk 0:00:15]}  g3 {[%clk 0:00:13]} 56. Kb2 {[%clk 0:00:15]}  g2 {[%clk 0:00:14]} 57. Ka2 {[%clk 0:00:16]}  g1=Q {[%clk 0:00:14]} 58. Kb2 {[%clk 0:00:16]}  Qa1+ {[%clk 0:00:14]} 59. Kc2 {[%clk 0:00:17]}  Qhc1+ {[%clk 0:00:14]} 60. Kb3 {[%clk 0:00:16]}  Qab2+ {[%clk 0:00:14]} 61. Ka4 {[%clk 0:00:16]}  Qa3# {[%clk 0:00:15]} 0-1


[Site "https://www.chess.com"]

[Event "Titled Tuesday Blitz January 03 Early 2023"]
[White "reevecanada"]
[Black "Necula, Iulian"]
[BlackFideId "1232380"]
[WhiteElo "2477"]
[BlackElo "1851"]
[Result "1-0"]
[Round "02"]
[TimeControl "180+2"]
[Date "2023.01.03"]
[WhiteClock "0:01:08"]
[BlackClock "0:00:01"]

1. e4 {[%clk 0:03:00]}  c5 {[%clk 0:02:59]} 2. Nf3 {[%clk 0:02:56]}  d6 {[%clk 0:02:59]} 3. d4 {[%clk 0:02:56]}  cxd4 {[%clk 0:03:00]} 4. Nxd4 {[%clk 0:02:57]}  Nf6 {[%clk 0:03:00]} 5. Nc3 {[%clk 0:02:57]}  g6 {[%clk 0:03:00]} 6. f3 {[%clk 0:02:57]}  Bg7 {[%clk 0:03:00]} 7. Be3 {[%clk 0:02:57]}  O-O {[%clk 0:03:00]} 8. Qd2 {[%clk 0:02:57]}  Nc6 {[%clk 0:03:00]} 9. O-O-O {[%clk 0:02:58]}  d5 {[%clk 0:03:00]} 10. Nb3 {[%clk 0:02:52]}  dxe4 {[%clk 0:02:41]} 11. Qe1 {[%clk 0:02:46]}  Qc7 {[%clk 0:02:29]} 12. fxe4 {[%clk 0:02:43]}  Bg4 {[%clk 0:02:19]} 13. Be2 {[%clk 0:02:42]}  Bxe2 {[%clk 0:02:18]} 14. Qxe2 {[%clk 0:02:43]}  Rad8 {[%clk 0:02:17]} 15. Nd5 {[%clk 0:02:35]}  Nxd5 {[%clk 0:02:11]} 16. exd5 {[%clk 0:02:36]}  Nb4 {[%clk 0:02:04]} 17. Bd4 {[%clk 0:02:17]}  Nxa2+ {[%clk 0:01:35]} 18. Kb1 {[%clk 0:02:14]}  Nb4 {[%clk 0:01:36]} 19. Bxg7 {[%clk 0:02:10]}  Kxg7 {[%clk 0:01:37]} 20. Qe4 {[%clk 0:02:08]}  a5 {[%clk 0:01:29]} 21. h4 {[%clk 0:02:04]}  f5 {[%clk 0:00:55]} 22. Qe2 {[%clk 0:01:51]}  Nxd5 {[%clk 0:00:48]} 23. Nd4 {[%clk 0:01:49]}  e5 {[%clk 0:00:45]} 24. Ne6+ {[%clk 0:01:48]}  Kf6 {[%clk 0:00:44]} 25. Nxc7 {[%clk 0:01:49]}  Nxc7 {[%clk 0:00:43]} 26. Qc4 {[%clk 0:01:47]}  Rxd1+ {[%clk 0:00:39]} 27. Rxd1 {[%clk 0:01:46]}  Rf7 {[%clk 0:00:40]} 28. g4 {[%clk 0:01:44]}  f4 {[%clk 0:00:39]} 29. g5+ {[%clk 0:01:41]}  Kg7 {[%clk 0:00:40]} 30. Rf1 {[%clk 0:01:38]}  b5 {[%clk 0:00:36]} 31. Qe4 {[%clk 0:01:36]}  Re7 {[%clk 0:00:35]} 32. Rxf4 {[%clk 0:01:32]}  b4 {[%clk 0:00:30]} 33. h5 {[%clk 0:01:28]}  gxh5 {[%clk 0:00:29]} 34. Rh4 {[%clk 0:01:24]}  Ne6 {[%clk 0:00:15]} 35. Rxh5 {[%clk 0:01:22]}  Nf8 {[%clk 0:00:16]} 36. Qf5 {[%clk 0:01:17]}  Rf7 {[%clk 0:00:11]} 37. Qxe5+ {[%clk 0:01:15]}  Kg8 {[%clk 0:00:10]} 38. Rh6 {[%clk 0:01:14]}  Ng6 {[%clk 0:00:09]} 39. Qe8+ {[%clk 0:01:08]}  Rf8 {[%clk 0:00:09]} 40. Rxg6+ {[%clk 0:01:06]}  hxg6 {[%clk 0:00:07]} 41. Qxg6+ {[%clk 0:01:07]}  Kh8 {[%clk 0:00:08]} 42. Qh6+ {[%clk 0:01:08]}  Kg8 {[%clk 0:00:08]} 43. g6 {[%clk 0:01:09]}  Rf1+ {[%clk 0:00:07]} 44. Ka2 {[%clk 0:01:09]}  Ra1+ {[%clk 0:00:01]} 45. Kxa1 {[%clk 0:01:07]}  a4 {[%clk 0:00:02]} 46. Qh7+ {[%clk 0:01:08]}  Kf8 {[%clk 0:00:01]} 47. Qf7# {[%clk 0:01:08]} 1-0


[Site "https://www.chess.com"]

[Event "Titled Tuesday Blitz January 03 Early 2023"]
[White "Eisa Mohmood, Alkhoori"]
[Black "Dudzinski, Pawel"]
[WhiteFideId "9316116"]
[BlackFideId "1117890"]
[WhiteElo "1095"]
[BlackElo "2186"]
[Result "1-0"]
[Round "02"]
[TimeControl "180+2"]
[Date "2023.01.03"]
[WhiteClock "0:00:22"]
[BlackClock "0:00:07"]

1. d4 {[%clk 0:03:00]}  d5 {[%clk 0:02:49]} 2. g3 {[%clk 0:03:00]}  c5 {[%clk 0:02:45]} 3. Bg2 {[%clk 0:03:01]}  cxd4 {[%clk 0:02:44]} 4. Nf3 {[%clk 0:02:58]}  Nc6 {[%clk 0:02:41]} 5. Nxd4 {[%clk 0:02:59]}  e6 {[%clk 0:02:41]} 6. O-O {[%clk 0:02:59]}  Bc5 {[%clk 0:02:38]} 7. Nxc6 {[%clk 0:02:55]}  bxc6 {[%clk 0:02:38]} 8. c4 {[%clk 0:02:56]}  Nf6 {[%clk 0:02:34]} 9. Nc3 {[%clk 0:02:56]}  O-O {[%clk 0:02:26]} 10. Qc2 {[%clk 0:02:54]}  Qe7 {[%clk 0:02:22]} 11. a3 {[%clk 0:02:49]}  a5 {[%clk 0:02:22]} 12. Bg5 {[%clk 0:02:42]}  Ba6 {[%clk 0:01:49]} 13. Bxf6 {[%clk 0:02:28]}  gxf6 {[%clk 0:01:46]} 14. cxd5 {[%clk 0:02:22]}  cxd5 {[%clk 0:01:45]} 15. Rfd1 {[%clk 0:02:12]}  Rfc8 {[%clk 0:01:43]} 16. e3 {[%clk 0:02:11]}  Rab8 {[%clk 0:01:39]} 17. Qd2 {[%clk 0:01:59]}  Bc4 {[%clk 0:01:35]} 18. e4 {[%clk 0:01:37]}  d4 {[%clk 0:01:30]} 19. Na4 {[%clk 0:01:23]}  Bb3 {[%clk 0:01:25]} 20. Nxc5 {[%clk 0:01:22]}  Bxd1 {[%clk 0:00:59]} 21. Na6 {[%clk 0:01:22]}  Rb6 {[%clk 0:00:19]} 22. Rxd1 {[%clk 0:01:10]}  Rxa6 {[%clk 0:00:18]} 23. Qxd4 {[%clk 0:01:08]}  e5 {[%clk 0:00:18]} 24. Qd5 {[%clk 0:01:02]}  a4 {[%clk 0:00:16]} 25. Qd3 {[%clk 0:00:55]}  Rb6 {[%clk 0:00:15]} 26. Bh3 {[%clk 0:00:54]}  Rcb8 {[%clk 0:00:15]} 27. Bf5 {[%clk 0:00:51]}  Rxb2 {[%clk 0:00:11]} 28. Qf3 {[%clk 0:00:51]}  Qf8 {[%clk 0:00:08]} 29. Rd7 {[%clk 0:00:45]}  Qg7 {[%clk 0:00:09]} 30. Qd3 {[%clk 0:00:37]}  R2b3 {[%clk 0:00:07]} 31. Rd8+ {[%clk 0:00:28]}  Rxd8 {[%clk 0:00:07]} 32. Qxd8+ {[%clk 0:00:29]}  Qf8 {[%clk 0:00:07]} 33. Qxf6 {[%clk 0:00:30]}  Rxa3 {[%clk 0:00:06]} 34. Qxe5 {[%clk 0:00:26]}  Ra1+ {[%clk 0:00:07]} 35. Qxa1 {[%clk 0:00:25]}  Qb4 {[%clk 0:00:07]} 36. e5 {[%clk 0:00:20]}  a3 {[%clk 0:00:06]} 37. e6 {[%clk 0:00:20]}  Qb2 {[%clk 0:00:03]} 38. exf7+ {[%clk 0:00:16]}  Kxf7 {[%clk 0:00:04]} 39. Qxb2 {[%clk 0:00:16]}  axb2 {[%clk 0:00:05]} 40. Bxh7 {[%clk 0:00:16]}  Kg7 {[%clk 0:00:06]} 41. Bb1 {[%clk 0:00:17]}  Kf6 {[%clk 0:00:06]} 42. f4 {[%clk 0:00:18]}  Ke6 {[%clk 0:00:06]} 43. Kf2 {[%clk 0:00:19]}  Kf6 {[%clk 0:00:06]} 44. Ke3 {[%clk 0:00:20]}  Ke6 {[%clk 0:00:07]} 45. g4 {[%clk 0:00:20]}  Kf6 {[%clk 0:00:07]} 46. h4 {[%clk 0:00:21]}  Ke6 {[%clk 0:00:08]} 47. h5 {[%clk 0:00:22]}  Kf6 {[%clk 0:00:08]} 48. g5+ {[%clk 0:00:23]}  Kg7 {[%clk 0:00:08]} 49. h6+ {[%clk 0:00:24]}  Kh8 {[%clk 0:00:08]} 50. g6 {[%clk 0:00:24]}  Kg8 {[%clk 0:00:08]} 51. f5 {[%clk 0:00:23]}  Kh8 {[%clk 0:00:08]} 52. f6 {[%clk 0:00:24]}  Kg8 {[%clk 0:00:09]} 53. f7+ {[%clk 0:00:24]}  Kf8 {[%clk 0:00:09]} 54. h7 {[%clk 0:00:23]}  Kg7 {[%clk 0:00:09]} 55. h8=Q+ {[%clk 0:00:22]}  Kxh8 {[%clk 0:00:07]} 56. f8=Q# {[%clk 0:00:22]} 1-0


[Site "https://www.chess.com"]

[Event "Titled Tuesday Blitz January 03 Early 2023"]
[White "Kaplan, Avi Harrison"]
[Black "AKINSEYE, Akinleye"]
[WhiteFideId "30934559"]
[BlackFideId "8504458"]
[WhiteElo "2146"]
[BlackElo "1797"]
[Result "1-0"]
[Round "02"]
[TimeControl "180+2"]
[Date "2023.01.03"]
[WhiteClock "0:01:13"]
[BlackClock "0:01:22"]

1. Nf3 {[%clk 0:02:58]}  d5 {[%clk 0:02:59]} 2. b3 {[%clk 0:02:58]}  c6 {[%clk 0:03:00]} 3. Bb2 {[%clk 0:02:58]}  Nf6 {[%clk 0:03:00]} 4. g3 {[%clk 0:02:57]}  Bf5 {[%clk 0:02:59]} 5. Bg2 {[%clk 0:02:57]}  Nbd7 {[%clk 0:02:59]} 6. O-O {[%clk 0:02:57]}  e6 {[%clk 0:02:59]} 7. d3 {[%clk 0:02:57]}  Be7 {[%clk 0:02:58]} 8. Nbd2 {[%clk 0:02:57]}  O-O {[%clk 0:02:58]} 9. c4 {[%clk 0:02:53]}  Qc7 {[%clk 0:02:56]} 10. Rc1 {[%clk 0:02:52]}  Qa5 {[%clk 0:02:54]} 11. Qc2 {[%clk 0:02:48]}  Rac8 {[%clk 0:02:49]} 12. a3 {[%clk 0:02:42]}  Qb6 {[%clk 0:02:38]} 13. h3 {[%clk 0:02:25]}  Qd8 {[%clk 0:02:29]} 14. Nh4 {[%clk 0:02:24]}  Bg6 {[%clk 0:02:29]} 15. Nxg6 {[%clk 0:02:24]}  hxg6 {[%clk 0:02:29]} 16. Nf3 {[%clk 0:02:22]}  Bd6 {[%clk 0:02:29]} 17. Rfd1 {[%clk 0:02:22]}  Re8 {[%clk 0:02:29]} 18. e4 {[%clk 0:02:21]}  dxe4 {[%clk 0:02:28]} 19. dxe4 {[%clk 0:02:21]}  Be7 {[%clk 0:02:25]} 20. e5 {[%clk 0:02:10]}  Nh7 {[%clk 0:02:21]} 21. Nd2 {[%clk 0:01:26]}  Qc7 {[%clk 0:02:17]} 22. Ne4 {[%clk 0:01:22]}  Nxe5 {[%clk 0:02:03]} 23. Qc3 {[%clk 0:01:22]}  Bf6 {[%clk 0:02:02]} 24. Nd6 {[%clk 0:01:18]}  Red8 {[%clk 0:01:42]} 25. Nxc8 {[%clk 0:01:17]}  Rxd1+ {[%clk 0:01:41]} 26. Rxd1 {[%clk 0:01:18]}  Qxc8 {[%clk 0:01:38]} 27. Qd2 {[%clk 0:01:16]}  Bg5 {[%clk 0:01:22]} 28. f4 {[%clk 0:01:13]} 1-0


[Site "https://www.chess.com"]